{"text_format":"2","workbook":"xlsx","n_sheets":3,"sheets":["1.  LED JR-ELEKTRO","2. GRAĐEVINSKI","Zbirna rekapitulacija"],"not_rendered":{"charts":0,"images":5,"macros":0,"external_links":0,"defined_names":1,"comments":0,"pivot_tables":0},"unopened":[],"bounds":{"document_bytes":16777216,"sheet_cells":100000,"run_cost":"one","rows_first":2000,"rows_last":500,"rows_between":2000,"halvings":0,"cell_chars":16384,"cell_head_chars":4096},"cells_cut":0,"cells_raw":0,"read":"whole","date_system":"1900"}

{"sheet":"1.  LED JR-ELEKTRO","index":0,"n_rows":68,"n_cols":6,"rows_kept":68,"cut":false,"hidden":false,"merged":[[49,0,50,0],[49,2,50,2],[49,3,50,3],[49,4,50,4],[49,5,50,5],[12,1,12,5],[47,0,48,0],[47,2,48,2],[47,3,48,3],[47,4,48,4],[47,5,48,5],[35,0,36,0],[30,0,31,0],[30,2,31,2],[30,3,31,3],[30,4,31,4],[28,0,29,0],[33,0,34,0],[33,2,34,2],[33,3,34,3],[33,4,34,4],[53,0,54,0],[53,2,54,2],[53,3,54,3],[53,4,54,4],[53,5,54,5],[1,1,3,1],[1,2,1,5],[2,2,2,5],[3,2,3,5],[63,1,63,2],[5,0,5,5],[11,1,11,5],[20,1,20,5],[21,1,21,5],[24,0,25,0],[24,5,25,5],[26,0,27,0],[26,2,27,2],[26,3,27,3],[26,4,27,4],[26,5,27,5],[37,0,38,0],[67,1,67,2],[22,1,22,5],[24,2,25,2],[24,3,25,3],[24,4,25,4],[45,4,46,4],[45,5,46,5],[43,4,44,4],[43,5,44,5],[28,2,29,2],[28,3,29,3],[28,4,29,4],[28,5,29,5],[37,4,38,4],[37,5,38,5],[39,0,40,0],[41,0,42,0],[45,0,46,0],[45,2,46,2],[45,3,46,3],[43,0,44,0],[43,2,44,2],[43,3,44,3],[37,2,38,2],[37,3,38,3],[65,1,65,2],[66,1,66,2],[10,1,10,5],[35,2,36,2],[35,3,36,3],[35,4,36,4],[35,5,36,5],[64,1,64,2],[19,1,19,5],[13,1,13,5],[14,1,14,5],[51,1,51,5],[33,5,34,5],[30,5,31,5]]}
[null,"SPECIFIKACIJA MATERIJALA"]
[null,null,"Predmet:"]
[]
[null,null,"Lokacija: Grad Sarajevo"]
[]
["Grad Sarajevo - Rekonstrukcija dijela sistema javne rasvjete - Ulice Maršala Tita i Ferhadija"]
[]
[null,null,"jed.\nmjere","kol.","jed.\ncijena","KM"]
[null,"Opis radova:"]
[]
["A","RASVJETA"]
["I","RASVJETA - NADZOR I UPRAVLJANJE SISTEMOM RASVJETE"]
[null,"NAPOMENA: \nSistemom daljinskog nadzora i upravljanja se treba moći daljinski upravljati sljedećim tipovima svjetiljki:\nSV1, SV4, SV5, SV6"]
[null,"Nadzor i upravljanje sistemom rasvjete za ponuđene svjetiljke  moraju biti dostupni upotrebom postojeće IT Infrastrukture (GSM, wireles) i uređaja (desktop računari, tableti, laptopi, pametni telefoni). \nNije poželjno investiranje u posebnu komunikacijsku infrastrukturu kao što su mreža optičkih kablova ili radio komunikacija zbog posebnih zahtjeva regulatornih tijela i fizičke izvodivosti u starom dijelu grada.\n Platforma za daljinski nadzor i upravljanje rasvjetom treba da bude isporučena korisniku kao Software-as-a-Service (SaaS), dostupan preko standardnog web browsera i sa obezbjeđenim mogućnostima podešavanja, proračunavanja, pohranjivanja i povezivanja sa pojedinačnim svjetiljkama i senzorima.\nSistemom se treba moći daljinski upravljati svjetiljkama (sa bilo koje lokacije), te dobivati operativni podaci sa istih. Sistem treba da obezbjedi grafičko korisničko sučelje uključujući i satelitski prikaz. Sistem treba imati mogućnost upravljanja resursima putem informacija o tipovima instalirane opreme. \nSistem mora imati mogućnost interoperabilnosti sa drugim sistemima i platformama putem API-a (Application Programming Interfaces).\nPristup sistemu nadzora i upravljanja treba biti omogućen sa uređaja povezanog na internet i uz korištenje korisničkog imena i lozinke. Korisnik treba imati mogučnost korištenja SDNUR prema ulozi korisnika i odgovarajućih prava pristupa dodjeljenih korisniku. SDNUR treba da koristi dva stepena autentičnosti kako bi se spriječilo neželjeno i zlonamjerno korištenje."]
[null,"Sistem daljinskog nadzora i upravljanja - telemenadžmenta (SDNUR) mora ispunjavati sljedeće zahtjeve: \n*mora koristiti otvorene protokole komunikacije TCP/IP, Http, XML,..\n*komunikacija između komponenti sistema mora biti što jednostavnija i što jeftinija\n*mogućnost pojedinačnog i grupnog nadzora i upravljanja svjetiljkama,\n*mogućnost očitavanja svih električnih parametara i parametara rada svjetiljke, kao što su: napon, struja, faktor snage, snaga pojedinačne svjetiljke, stanje uključenosti svjetiljke, signal detekcije kvara i sl.\n*mogućnost fleksibilne adaptacije nivoa osvjetljenja grupa, ali i pojedinačnih svjetiljki (on/off/dim), \n*mogućnost geolokacije svjetiljke, \n*mogućnost autonomnog rada u situacijama kada SDNUR nije operativan (samostalnouključenje/isključenje svjetiljki u skladu sa realnim kalendarom)\n*mogućnost planiranja režima osvjetljenja koristeći realni kalendar, \n*automatsko obavještavanje o kvarovima, \n*mogućnost praćenja/očitavanja potrošnje energije u realnom vremenu\n*mogućnost arhiviranja podataka značajnih za rad sistema (potrošnja energije i sl.) i pripremanja izvještaja o događajima u sistemu\n*mogućnost prikaza veličina sa senzora\n*fleksibilna struktura sistema uz mogućnost lakog proširenja sistema\n*interoperabilnost sa komponentama drugih proizvođača svjetiljki i pripadajuće opreme\n*obezbijeđena tehnička podrška i servis za komponente sistema u BiH\n\nProizvođač, tip i naziv sistema daljinskog upravljanja i nadzora: \n(obavezno upisati):  ____________________________________________________\n____________________________________________________________________"]
["1.1","Jednokratni troškovi uvođenja sistema daljinskog upravljanja i nadzora (zakup/software/licence/dodatni moduli i oprema..ostalo)","komplet",1,null,{"$f":"D16*E16","v":0}]
["1.2","Godišnji troškovi eksploatacije sistema daljinskog upravljanja i nadzora (zakup/licence/...ostalo)","komplet",1,null,{"$f":"D17*E17","v":0}]
["1.3","Jednokratni troškovi/naknade uključivanja novomontiranih svjetiljki u sistem daljinskog upravljanja i nadzora","po svjetiljci",1,null,{"$f":"D18*E18","v":0}]
["1.4","Godišnji troškovi/naknade korištenja sistema daljinskog upravljanja i nadzora za novomontirane svjetiljke ","po svjetiljci",1,null,{"$f":"D19*E19","v":0}]
["II","RASVJETA - ISPORUKA I UGRADNJA SVJETILJKI I STUPOVA"]
[null,"Nabavka, isporuka, ugradnja specificiranog materijala i opreme na lokaciju koju odredi Investitor, uključujući sve potrebne tehnološke operacije, sav potreban sitni  montažni materijal, kao i sva potrebna električna spajanja i funkcionalna povezivanja do pune funkcionalnosti opreme, te sve pripadne pripremne i završne radove (čišćenje, odvoz demontiranog ili preostalog  materijala i sl.).\nInstalacije moraju biti izvedene u skladu s važećim BiH Pravilnicima. \nU cilju provjere zadovoljavanja svjetlotehničkih zahtjeva u sklopu ponude je potrebno na posebnom CD-u ili u elektronskoj formi za svaki od ponuđenih tipova svjetiljki dostaviti podatke neophodne za fotometrijske proračune (LDT i IES datoteke proizvođača sa nazivima koji tačno određuju na koji model i tip se odnose).\nZa svaki od ponuđenih tipova svjetiljki je potrebno navesti tačan naziv proizvođača, model i tip proizvoda."]
[null,"ZAHTIJEVANE KARAKTERISTIKE SVJETILJKI ZA SVE TIPOVE:\n• Svjetiljke se isporučuju sa ugrađenim izvorima svjetla, svim za rad neophodnim i predprogramiranim modulima i opremom, ovjesnim priborom i ostalom pripadajućom opremom. Svi izvori svjetlosti i rasvjetna tijela ugrađuju se s potpuno funkcionalnim kontrolnim uređajima za regulaciju intenziteta svjetlosti koji se mogu programirati.\n• Gornji i donji dio kućišta svjetiljke izrađeni od aluminija ili aluminijumske legure livene pod pritiskom, sa antikorozivnim premazom.\n• Donji dio kućišta sa profilisanim silikonskim ili gumenim zaptivačem koji obezbjeđuje odgovarajući stepen zaštite dijela svjetiljke sa predspojnim uređajima/modulima. \n• Protektor izrađen od kaljenog stakla otpornog na UV zrake, atmosferske uticaje i temperaturne dilatacije.\n• Svi aplicirani vijci, podloške i matice od nehrđajućeg čelika ili drugog jednakovrijednog nehrđajućeg metala.\n• Minimalna garancija: 5 godina."]
[null,"U cilju potvrđivanja zadovoljavanja zahtijevanih karakteristika, za svaki od ponuđenih tipova svjetiljki ili stubova potrebno je priložiti:\n• Tehničku specifikaciju proizvoda sa slikom, koja mora sadržavati informacije o svim tehničkim parametrima traženim u tenderskoj dokumentaciji, usklađenu sa zahtjevima normi  IEC / EN 62722-1:2014, IEC / EN 62722-2-1:2014, CIE 15 i ovjerenu od strane proizvođača/dobavljača.\n• Ponuditelj za izvore svjetlosti i rasvjetna tijela čiju upotrebu predlaže dostavlja dokumentaciju proizvođača iz koje je vidljivo da su oni kompatibilni s kontrolnim uređajima za regulaciju intenziteta svjetlosti (SDNUR).\n• Deklaraciju o usaglašenosti sa CE znakom, izdatu od Proizvođača.\n• Deklaraciju o usaglašenosti sa RoHS direktivom izdatu od Proizvođača.\n• ENEC certifikat izdat od odgovarajućeg akreditovanog tijela,\n• EMC certifikat izdat od odghovarajuće akreditovane laboratorije,\n• Potvrda o ispitivanju fotobiološke sigurnosti prema normi EN 62471  izdata od odghovarajuće akreditovane laboratorije, \n• Fotometrijski izvještaj, ili certifikat prema standardu EN 13032-1 i EN 13032-4 kojima se dokazuju tražene karakteristike svjetiljke  izdat od odgovarajuće akreditovane laboratorije.\n• Izvještaj nezavisne akreditovane laboratorije o testiranju otpornosti na udar (IK test) prema standardu EN 62262.\n• Izvještaj nezavisne akreditovane laboratorije o testiranju mehaničke zaštite (IP test) prema standardu EN 60598.\n• Izvještaj proizvođača LED čipova ili LED svjetiljki o projektovanom životnom vjeku i održanju svjetlosnog fluksa prema standardima IES LM80 / IESTM21.\n• Certifikat o postojanosti svojstava za metalne stubove prema standardu EN 40-5\n\nAtesti, certifikati i izvještaji za svjetiljke kao i za ostalu opremu i materijal mogu biti dostavljeni na jednom od službenih jezika BiH ili na engleskom jeziku."]
["II a","Ulica Maršala Tita, od ulice Radićeva do Vječne vatre"]
["2.1","Isporuka, ugradnja, povezivanje na sistem upravljanja i puštanje u rad LED svjetiljke TIP-SV1,\nOpis:\n• Svjetiljka za osvjetljenje saobraćajnica i pješačkih zona\n• Svjetiljka se montira na primarno uže (Catenary), na visini od 10 m, prema detaljima datim u tekstualnom i grafičkom dijelu projektne dokumentacije\n• U cijenu svjetiljke treba da bude uračunat i fabrički nosač za primarno uže\n• Sistem hvatanja svjetiljke na nosivo uže promjera od 6 mm do 15 mm. Hvatanje na uže osigurano vijcima sa maticama.\n• Masa svjetiljke sa hvataljkom za primarno uže ne veća od 12.50 kg;\n• Boja kućišta: tamno siva nijansa završne boje\n• Kućište svjetiljke dizajnirano glatko, bez rebara za hlađenje, u cilju prevencije zadržavanja nečistoća.\n• Protokol za komunikaciju i upravljanje svjetiljkom (predspoj/antena/senzor): DALI-2 ili jednakovrijedan \n• Predspojni uređaj (driver) treba biti u skladu sa DiiA uputama sa DALI-2 komunikacijskim protokolom za rasvjetu ili jednakovrijednim i treba da ima mogućnost tačnog mjerenja ukupno potrošene energije i ukupno potrošene energije od posljednjeg vraćanja na tvorničke postavke (reset)\n• Svjetiljke su opremljene antenom za komunikaciju u cilju daljinskog nadzora i upravljanja.\n• Svjetiljke trebaju biti sistemski pripremljene (system ready - SR) i opremljene sa jednim ili dva Zhaga konektora (Zhaga book 18) ili jednakovrijednim kao standardiziranim sučeljem (interfejsom) koji povezuje SR predspojne uređaje sa SR antenama Centra za daljinski nadzor i upravljanje (CMS) i SR senzorima koji se smještaju na donji ili gornji dio svjetiljke.\n• Sve antene i senzori moraju moraju imati mogućnost lake montaže/demontaže na SR konektore bez upotrebe alata, a povezivanje antena i senzora mora biti omogućeno bez otvaranja svjetiljke\n• Svjetiljke trebaju biti opremljene servisnom naljepnicom sa QR kodom koji je vidljiv na vanjskoj strani svjetiljke i koji omogućava  pristup informacijama o radnim parametrima i statusu svjetiljke.\n• Uz svjetiljku isporučiti i dodatne servisne naljepnice sa QR kodom kako bi se mogle postaviti na lakše dostupna mjesta\n","kom",30,null,{"$f":"D25*E25","v":0}]
[null,"Električne i optičke Karakteristike:\n• Ukupna snaga svjetiljke: max 50W ±10%, \n• Iskoristivi (izlazni) svjetlosni fluks svjetiljke: min 5.700 lm ± 5% (na Ta=25°C),\n• Efikasnost svjetiljke  ≥ 120 lm/W.\n• Temperatura boje svjetlosti: 3000K (WW-toplo bijela).\n• Nazivni napon i frekvencija: 220-240 VAC, 50 Hz;\n• Faktor snage pri 100% tereta: ≥ 0.90 ,\n• Klasa zaštite prema IEC: I;\n• Ugrađena prenaponska zaštita: 10 kV, izdržljivosti 10kA;\n• NTC temperaturna regulacija optičkog bloka;\n• Trajnost LED izvora (za tq=25°C): ≥100.000 sati,  uz  min. L96: 6.000 sati projicirano \n• Izvedba optičkog bloka: Potpuno zasjenjena uz ULOR = 0,0%;\n• Uzvrat boje CRI ≥ 80;\n• Mehanička otpornost svjetiljke na udar min. IK08;\n• Stepen zaptivenosti svjetiljke (optičkog dijela i dijela predspojnog uređaja) min. IP66, \n• Radna temperatura svjetiljke: u rasponu -35 ͦC do +35 ͦC.\n• Optika / raspodjela svjetla: simetrična\n\nProizvođač, tip i model: \n(obavezno upisati): ____________________________________________________________________\n____________________________________________________________________\n"]
["2.2","Isporuka, ugradnja i puštanje u rad LED svjetiljke TIP-SV2,\nOpis:\n• Svjetiljka za osvjetljenje arhitektonskih detalja na fasadama rezidencijalnih objekata i objekata kulturnog nasljeđa (\"wallwash / graze\")\n• Svjetiljka se montirana fasadama objekata, prema detaljima datim u tekstualnom i grafičkom dijelu projektne dokumentacije\n• Nosač za montažu i napojni kabeli sa brzim konektorima koji omogućavaju brzu i jednostavnu montažu.\n• Masa svjetiljke ne veća od: 1,35 kg\n• Boja kućišta: tamno siva nijansa završne boje","kom",25,null,{"$f":"D27*E27","v":0}]
[null,"Električne i optičke Karakteristike:\n• Ukupna snaga svjetiljke: max 18W ±10%, \n• Iskoristivi (izlazni) svjetlosni fluks svjetiljke: min 780 lm ± 5% (na Ta=25°C),\n• Efikasnost svjetiljke  ≥ 40 lm/W.\n• Temperatura boje svjetlosti: 3000K (WW-toplo bijela).\n• Nazivni napon i frekvencija: 100-270 VAC, 50 Hz;\n• Faktor snage pri 100% tereta: ≥ 0.90 ,\n• Klasa zaštite prema IEC: I;\n• Trajnost LED izvora:  ≥ 60.000 sati, \n• Svjetlosni fluks izvora svjetla pri 100% tereta nakon 60.000 sati (T=25C): min.70% od inicijalnog (L70)\n• Uzvrat boje CRI ≥ 80;\n• Mehanička otpornost svjetiljke na udar min. IK06;\n• Stepen zaptivenosti svjetiljke (optičkog dijela i dijela predspojnog uređaja) min. IP66, \n• Radna temperatura svjetiljke: u rasponu -35 ͦC do +35 ͦC.\n• Ugao svjetla: 10° x 50°, eliptična raspodjela\n\nProizvođač, tip i model: \n(obavezno upisati): ____________________________________________________________________\n____________________________________________________________________\n"]
["2.3","Isporuka, ugradnja i puštanje u rad LED svjetiljke TIP-SV3,\nOpis:\n• Svjetiljka za osvjetljenje arhitektonskih detalja na fasadama  rezidencijalnih objekata i objekata kulturnog nasljeđa (spotlight)\n• Svjetiljke se montiraju na kablovski sistem zatega, na visini od cca 10m, prema detaljima datim u tekstualnom i grafičkom dijelu projektne dokumentacije.\n• Masa svjetiljke ne veća od: 3,5 kg\n• Boja kućišta: tamno crna nijansa završne boje","kom",2,null,0]
[null,"Električne i optičke Karakteristike:\n• Ukupna snaga svjetiljke: max 30W ±10%, \n• Iskoristivi (izlazni) svjetlosni fluks svjetiljke: min 1.850 lm ± 5% (na Ta=25°C),\n• Efikasnost svjetiljke  ≥ 50 lm/W.\n• Temperatura boje svjetlosti: 3000K (WW-toplo bijela).\n• Nazivni napon i frekvencija: 100-270 VAC, 50 Hz;\n• Faktor snage pri 100% tereta: ≥ 0.90 ,\n• Klasa zaštite prema IEC: I;\n• Trajnost LED izvora:  ≥ 90.000 sati, \n• Svjetlosni fluks izvora svjetla pri 100% tereta nakon 90.000 sati (T=25C): min.70% od inicijalnog (L70)\n• Uzvrat boje CRI ≥ 80;\n• Mehanička otpornost svjetiljke na udar min. IK07;\n• Stepen zaptivenosti svjetiljke (optičkog dijela i dijela predspojnog uređaja) min. IP66, \n• Radna temperatura svjetiljke: u rasponu -35 ͦC do +35 ͦC.\n• Ugao svjetla: 6° - uski snop\n\nProizvođač, tip i model: \n(obavezno upisati): ____________________________________________________________________\n____________________________________________________________________\n"]
["2.4","Isporuka, ugradnja i puštanje u rad LED svjetiljke TIP-SV10,\nOpis:\n• Svjetiljka za osvjetljenje arhitektonskih detalja na fasadama  rezidencijalnih objekata i objekata kulturnog nasljeđa (spotlight)\n• Svjetiljke se montiraju konzolno na fasadu, na visini od cca 6m-10m, prema detaljima datim u tekstualnom i grafičkom dijelu projektne dokumentacije.\n• Boja kućišta: tamno crna nijansa završne boje","kom",10,null,{"$f":"D31*E31","v":0}]
[null,"Električne i optičke Karakteristike:\n• Ukupna snaga svjetiljke: max 12W ±10%, \n• Iskoristivi (izlazni) svjetlosni fluks svjetiljke: min 680 lm ± 5% (na Ta=25°C),\n• Efikasnost svjetiljke  ≥ 60 lm/W.\n• Temperatura boje svjetlosti: 3000K (WW-toplo bijela).\n• Nazivni napon i frekvencija: 100-270 VAC, 50 Hz;\n• Faktor snage pri 100% tereta: ≥ 0.90 ,\n• Klasa zaštite prema IEC: I;\n• Trajnost LED izvora:  ≥ 50.000 sati, \n• Svjetlosni fluks izvora svjetla pri 100% tereta nakon 50.000 sati (T=25C): min.90% od inicijalnog (L90)\n• Uzvrat boje CRI ≥ 80;\n• Mehanička otpornost svjetiljke na udar min. IK07;\n• Stepen zaptivenosti svjetiljke (optičkog dijela i dijela predspojnog uređaja) min. IP66, \n• Radna temperatura svjetiljke: u rasponu -35 ͦC do +35 ͦC.\n• Ugao svjetla: 6° - 10° uski snop \n\nProizvođač, tip i model: \n(obavezno upisati): ____________________________________________________________________\n____________________________________________________________________\n"]
["II b","Ulica Ferhadija, od ulice Maršala Tita do pozicije \"Sarajevo Meeting of Cultures\""]
["2.4","Isporuka, ugradnja, povezivanje na sistem upravljanja i puštanje u rad LED svjetiljke TIP-SV4,\nOpis:\n• Svjetiljka za osvjetljenje saobraćajnica i pješačkih zona\n• Svjetiljka se montira na primarno uže (Catenary), na visini od 6 m, prema detaljima datim u tekstualnom i grafičkom dijelu projektne dokumentacije\n• U cijenu svjetiljke treba da bude uračunat i fabrički nosač za primarno uže\n• Sistem hvatanja svjetiljke na nosivo uže promjera od 6 mm do 15 mm. Hvatanje na uže osigurano vijcima sa maticama.\n• Masa svjetiljke sa hvataljkom za primarno uže ne veća od 18,0 kg;\n• Boja kućišta: tamno siva nijansa završne boje\n• Kućište svjetiljke dizajnirano glatko, bez rebara za hlađenje, u cilju prevencije zadržavanja nečistoća.\n• Protokol za komunikaciju i upravljanje svjetiljkom (predspoj/antena/senzor): DALI-2 ili jednakovrijedan \n• Predspojni uređaj (driver) treba biti u skladu sa DiiA uputama sa DALI-2 komunikacijskim protokolom za rasvjetu ili jednakovrijednim i treba da ima mogućnost tačnog mjerenja ukupno potrošene energije i ukupno potrošene energije od posljednjeg vraćanja na tvorničke postavke (reset)\n• Svjetiljke su opremljene antenom za komunikaciju u cilju daljinskog nadzora i upravljanja.\n• Svjetiljke trebaju biti sistemski pripremljene (system ready - SR) i opremljene sa jednim ili dva Zhaga konektora (Zhaga book 18) ili jednakovrijednim kao standardiziranim sučeljem (interfejsom) koji povezuje SR predspojne uređaje sa SR antenama Centra za daljinski nadzor i upravljanje (CMS) i SR senzorima koji se smještaju na donji ili gornji dio svjetiljke.\n• Sve antene i senzori moraju moraju imati mogućnost montaže/demontaže na SR konektore bez upotrebe alata, a povezivanje antena i senzora mora biti omogućeno bez otvaranja svjetiljke\n• Svjetiljke trebaju biti opremljene servisnom naljepnicom sa QR kodom koji je vidljiv na vanjskoj strani svjetiljke i koji omogućava  pristup informacijama o radnim parametrima i statusu svjetiljke.\n• Uz svjetiljku isporučiti i dodatne servisne naljepnice sa QR kodom kako bi se mogle postaviti na lakše dostupna mjesta\n","kom",31,null,0]
[null,"Električne i optičke Karakteristike:\n• Ukupna snaga svjetiljke: max 50W ±10%, \n• Iskoristivi (izlazni) svjetlosni fluks svjetiljke: min 5.000 lm ± 5% (na Ta=25°C),\n• Efikasnost svjetiljke  ≥ 110 lm/W.\n• Temperatura boje svjetlosti: 3000K (WW-toplo bijela).\n• Nazivni napon i frekvencija: 220-240 VAC, 50 Hz;\n• Faktor snage pri 100% tereta: ≥ 0.90 ,\n• Klasa zaštite prema IEC: I;\n• Ugrađena prenaponska zaštita: 10 kV, izdržljivosti 10kA;\n• NTC temperaturna regulacija optičkog bloka;\n• Trajnost LED izvora: min. L90 za  ≥100.000 sati,  uz  min. L96: 6.000 sati projicirano (za tq=25°C)\n• Izvedba optičkog bloka: Potpuno zasjenjena uz ULOR = 0,0%;\n• Uzvrat boje CRI ≥ 80;\n• Mehanička otpornost svjetiljke na udar min. IK08;\n• Stepen zaptivenosti svjetiljke (optičkog dijela i dijela predspojnog uređaja) min. IP66, \n• Radna temperatura svjetiljke: u rasponu -35 ͦC do +35 ͦC.\n• Optika / raspodjela svjetla: simetrična\n\nProizvođač, tip i model: \n(obavezno upisati): ____________________________________________________________________\n____________________________________________________________________\n"]
["2.5","Isporuka, ugradnja, povezivanje na sistem upravljanja i puštanje u rad LED svjetiljke TIP-SV5,\nOpis:\n• Svjetiljka za osvjetljenje saobraćajnica i pješačkih zona\n• Svjetiljke se montiraju na lire dužine 100 cm, koje se montiraju na fasadama objekata, na visini od 6m, prema detaljima datim u tekstualnom i grafičkom dijelu projektne dokumentacije.\n• Dizajn svjetiljke mora biti isti kao kod svjetiljke SV4 jer se postavljaju u neposrednoj blizini\n• U cijenu svjetiljke treba da bude uračunata i lira dužine 100 cm;\n• Lira i svjetiljka fabrički priprmljene bez stepenastih prelaza;\n• Boja kućišta: tamno siva nijansa završne boje\n• Kućište svjetiljke dizajnirano glatko, bez rebara za hlađenje, u cilju prevencije zadržavanja nečistoća.\n• Protokol za komunikaciju i upravljanje svjetiljkom (predspoj/antena/senzor): DALI-2 ili jednakovrijedan \n• Predspojni uređaj (driver) treba biti u skladu sa DiiA uputama sa DALI-2 komunikacijskim protokolom za rasvjetu ili jednakovrijednim i treba da ima mogućnost tačnog mjerenja ukupno potrošene energije i ukupno potrošene energije od posljednjeg vraćanja na tvorničke postavke (reset)\n• Svjetiljke su opremljene antenom za komunikaciju u cilju daljinskog nadzora i upravljanja.\n• Svjetiljke trebaju biti sistemski pripremljene (system ready - SR) i opremljene sa jednim ili dva Zhaga konektora (Zhaga book 18) ili jednakovrijednim kao standardiziranim sučeljem (interfejsom) koji povezuje SR predspojne uređaje sa SR antenama Centra za daljinski nadzor i upravljanje (CMS) i SR senzorima koji se smještaju na donji ili gornji dio svjetiljke.\n• Sve antene i senzori moraju moraju imati mogućnost montaže/demontaže na SR konektore bez upotrebe alata, a povezivanje antena i senzora mora biti omogućeno bez otvaranja svjetiljke\n• Svjetiljke trebaju biti opremljene servisnom naljepnicom sa QR kodom koji je vidljiv na vanjskoj strani svjetiljke i koji omogućava  pristup informacijama o radnim parametrima i statusu svjetiljke.\n• Uz svjetiljku isporučiti i dodatne servisne naljepnice sa QR kodom kako bi se mogle postaviti na lakše dostupna mjesta\n","kom",7,null,0]
[null,"Električne i optičke Karakteristike:\n• Ukupna snaga svjetiljke: max 50W ±10%, \n• Iskoristivi (izlazni) svjetlosni fluks svjetiljke: min 5.200 lm ± 5% (na Ta=25°C),\n• Efikasnost svjetiljke  ≥ 120 lm/W.\n• Temperatura boje svjetlosti: 3000K (WW-toplo bijela).\n• Nazivni napon i frekvencija: 220-240 VAC, 50 Hz;\n• Faktor snage pri 100% tereta: ≥ 0.90 ,\n• Klasa zaštite prema IEC: I;\n• Ugrađena prenaponska zaštita: 10 kV, izdržljivosti 10kA;\n• NTC temperaturna regulacija optičkog bloka;\n• Trajnost LED izvora: min. L90 za  ≥100.000 sati,  uz  min. L96: 6.000 sati projicirano (za tq=25°C)\n• Izvedba optičkog bloka: Potpuno zasjenjena uz ULOR = 0,0%;\n• Uzvrat boje CRI ≥ 80;\n• Mehanička otpornost svjetiljke na udar min. IK08;\n• Stepen zaptivenosti svjetiljke (optičkog dijela i dijela predspojnog uređaja) min. IP66, \n• Radna temperatura svjetiljke: u rasponu -35 ͦC do +35 ͦC.\n• Optika / raspodjela svjetla: asimetrična\n\nProizvođač, tip i model: \n(obavezno upisati): ____________________________________________________________________\n____________________________________________________________________\n"]
["2.6","Isporuka, ugradnja, povezivanje na sistem upravljanja i puštanje u rad LED svjetiljke TIP-SV6,\nOpis:\n• Svjetiljka za osvjetljenje saobraćajnica i pješačkih zona\n• Svjetiljke se montiraju na stupove, 3 kom po stupu, na visini od 6m, prema detaljima datim u tekstualnom i grafičkom dijelu projektne dokumentacije, trg ispred Katedrale..\n• Dizajn svjetiljke mora biti isti kao kod svjetiljki SV4 i SV5 jer se postavljaju u neposrednoj blizini\n• Boja kućišta: tamno siva nijansa završne boje;\n• U cijenu svjetiljke treba da bude uračunat i adapter za stup;\n• Adapter za stup i svjetiljka fabrički priprmljene bez stepenastih prelaza;\n• Kućište svjetiljke dizajnirano glatko, bez rebara za hlađenje, u cilju prevencije zadržavanja nečistoća.\n• Protokol za komunikaciju i upravljanje svjetiljkom (predspoj/antena/senzor): DALI-2 ili jednakovrijedan \n• Predspojni uređaj (driver) treba biti u skladu sa DiiA uputama sa DALI-2 komunikacijskim protokolom za rasvjetu ili jednakovrijednim i treba da ima mogućnost tačnog mjerenja ukupno potrošene energije i ukupno potrošene energije od posljednjeg vraćanja na tvorničke postavke (reset)\n• Svjetiljke su opremljene antenom za komunikaciju u cilju daljinskog nadzora i upravljanja.\n• Svjetiljke trebaju biti sistemski pripremljene (system ready - SR) i opremljene sa jednim ili dva Zhaga konektora (Zhaga book 18) ili jednakovrijednim kao standardiziranim sučeljem (interfejsom) koji povezuje SR predspojne uređaje sa SR antenama Centra za daljinski nadzor i upravljanje (CMS) i SR senzorima koji se smještaju na donji ili gornji dio svjetiljke.\n• Sve antene i senzori moraju moraju imati mogućnost montaže/demontaže na SR konektore bez upotrebe alata, a povezivanje antena i senzora mora biti omogućeno bez otvaranja svjetiljke\n• Svjetiljke trebaju biti opremljene servisnom naljepnicom sa QR kodom koji je vidljiv na vanjskoj strani svjetiljke i koji omogućava  pristup informacijama o radnim parametrima i statusu svjetiljke.\n• Uz svjetiljku isporučiti i dodatne servisne naljepnice sa QR kodom kako bi se mogle postaviti na lakše dostupna mjesta\n","kom",6,null,0]
[null,"Električne i optičke Karakteristike:\n• Ukupna snaga svjetiljke: max 50W ±10%, \n• Iskoristivi (izlazni) svjetlosni fluks svjetiljke: min 5.200 lm ± 5% (na Ta=25°C),\n• Efikasnost svjetiljke  ≥ 120 lm/W.\n• Temperatura boje svjetlosti: 3000K (WW-toplo bijela).\n• Nazivni napon i frekvencija: 220-240 VAC, 50 Hz;\n• Faktor snage pri 100% tereta: ≥ 0.90 ,\n• Klasa zaštite prema IEC: I;\n• Ugrađena prenaponska zaštita: 10 kV, izdržljivosti 10kA;\n• NTC temperaturna regulacija optičkog bloka;\n• Trajnost LED izvora: min. L90 za  ≥100.000 sati,  uz  min. L96: 6.000 sati projicirano (za tq=25°C)\n• Izvedba optičkog bloka: Potpuno zasjenjena uz ULOR = 0,0%;\n• Uzvrat boje CRI ≥ 80;\n• Mehanička otpornost svjetiljke na udar min. IK08;\n• Stepen zaptivenosti svjetiljke (optičkog dijela i dijela predspojnog uređaja) min. IP66, \n• Radna temperatura svjetiljke: u rasponu -35 ͦC do +35 ͦC.\n• Optika / raspodjela svjetla: asimetrična\n\nProizvođač, tip i model: \n(obavezno upisati): ____________________________________________________________________\n____________________________________________________________________\n"]
["2.7","Projektna oznaka stupa STUP 1 - Ferhadija"]
[null,"Opis stupa\nKonusni stup visine 8m. Navedena visina se odnosi na visinu stupa do početka oštrog završetka stupa.\nStup ima oštri završetak dužine 1,4m-1,5 m. Promjer stupa na mjestu montaže oštrog završetka treba da bude od 55-70mm.\nNa stup se montiraju po 3 kom svjetiljki tip SV6, neposredno jedna ispod/iznad druge. Visina montaže srednje svjetiljke na stupu iznosi 6m. Svjetiljke su međusobno zakrenute u prostoru za 120°. Ugao konusnog nagiba stupa mora odgovarati tvorničkom adapteru za montažu svjetiljki tvoreći na taj način glatku površinu. Stup dolazi sa prethodno pripremljenim otvorima za prolaz kabela u svjetiljke i otvorima za montažu adaptera za svjetiljke.\nStup se montira na prethodno pripremljen temelj i ankere, na poziciji prema preojektnoj dokumentaciji. U cijenu uključiti i povezivanje stupa na postojeći uzemljivač.","kom",2,null,{"$f":"D41*E41","v":0}]
["2.8","Projektna oznaka stupa STUP 2 - Ferhadija"]
[null,"Opis stupa\nKonusni stup visine 8m. Navedena visina se odnosi na visinu stupa do početka oštrog završetka stupa.\nStup ima oštri završetak dužine 1,4m - 1,5m. Promjer stupa na mjestu montaže oštrog završetka treba da bude od 55-70mm.\nStup se montira na prethodno pripremljen temelj i ankere, na poziciji prema projektnoj dokumentaciji, i prevenstveno služe za postavljanje primarne užadi.\nSekundarna namjena stupova je postavljanje svjetiljke/reflektora tip SV8 iz ovog predmjera. U cijenu uključiti i povezivanje stupa na postojeći uzemljivač","kom",7,null,{"$f":"D43*E43","v":0}]
["2.9","Isporuka, ugradnja i puštanje u rad LED svjetiljke TIP-SV7,\nOpis:\n• Svjetiljka za osvjetljenje arhitektonskih detalja na fasadama rezidencijalnih objekata i objekata kulturnog nasljeđa (\"wallwash / graze\")\n• Svjetiljka se montirana konzolno na fasadama objekata, na visini 6m-8m, prema detaljima datim u tekstualnom i grafičkom dijelu projektne dokumentacije\n• Nosač za montažu i napojni kabeli sa brzim konektorima koji omogućavaju brzu i jednostavnu montažu.\n• Masa svjetiljke ne veća od: 1,35 kg\n• Boja kućišta: tamno siva nijansa završne boje","kom",56,null,0]
[null,"Električne i optičke Karakteristike:\n• Ukupna snaga svjetiljke: max 18W ±10%, \n• Iskoristivi (izlazni) svjetlosni fluks svjetiljke: min 780 lm ± 5% (na Ta=25°C),\n• Efikasnost svjetiljke  ≥ 40 lm/W.\n• Temperatura boje svjetlosti: 3000K (WW-toplo bijela).\n• Nazivni napon i frekvencija: 100-270 VAC, 50 Hz;\n• Faktor snage pri 100% tereta: ≥ 0.90 ,\n• Klasa zaštite prema IEC: I;\n• Trajnost LED izvora:  ≥ 60.000 sati, \n• Svjetlosni fluks izvora svjetla pri 100% tereta nakon 60.000 sati (T=25C): min.70% od inicijalnog (L70)\n• Uzvrat boje CRI ≥ 80;\n• Mehanička otpornost svjetiljke na udar min. IK06;\n• Stepen zaptivenosti svjetiljke (optičkog dijela i dijela predspojnog uređaja) min. IP66, \n• Radna temperatura svjetiljke: u rasponu -35 ͦC do +35 ͦC.\n• Ugao svjetla: 10° x 50°, eliptična raspodjela\n\nProizvođač, tip i model: \n(obavezno upisati): ____________________________________________________________________\n____________________________________________________________________\n"]
["2.10","Isporuka, ugradnja i puštanje u rad LED svjetiljke TIP-SV8,\nOpis:\n• Svjetiljka za osvjetljenje arhitektonskih detalja na fasadama  rezidencijalnih objekata i objekata kulturnog nasljeđa (spotlight)\n• Svjetiljke se montiraju na stub, na visini od 6m-8m, prema detaljima datim u tekstualnom i grafičkom dijelu projektne dokumentacije.\n• Masa svjetiljke ne veća od: 2,0 kg\n• Boja kućišta: crnaa nijansa završne boje","kom",4,null,{"$f":"D46*E46","v":0}]
[null,"Električne i optičke Karakteristike:\n• Ukupna snaga svjetiljke: max 15W ±10%, \n• Iskoristivi (izlazni) svjetlosni fluks svjetiljke: min 620 lm ± 5% (na Ta=25°C),\n• Efikasnost svjetiljke  ≥ 40 lm/W.\n• Temperatura boje svjetlosti: 3000K (WW-toplo bijela).\n• Nazivni napon i frekvencija: 100-270 VAC, 50 Hz;\n• Faktor snage pri 100% tereta: ≥ 0.90 ,\n• Klasa zaštite prema IEC: I;\n• Svjetlosni fluks izvora svjetla pri 100% tereta nakon 90.000 sati (T=25C): min.70% od inicijalnog (L70)\n• Uzvrat boje CRI ≥ 80;\n• Mehanička otpornost svjetiljke na udar min. IK07;\n• Stepen zaptivenosti svjetiljke (optičkog dijela i dijela predspojnog uređaja) min. IP66, \n• Radna temperatura svjetiljke: u rasponu -35 ͦC do +35 ͦC.\n• Ugao svjetla: 8° - uski snop\n\nProizvođač, tip i model: \n(obavezno upisati): ____________________________________________________________________\n____________________________________________________________________\n"]
["2.10","Isporuka, ugradnja i puštanje u rad LED svjetiljke TIP-SV9,\nOpis:\n• Svjetiljka za osvjetljenje arhitektonskih detalja na fasadama  rezidencijalnih objekata i objekata kulturnog nasljeđa (spotlight)\n• Svjetiljke se montiraju na stub, na visini od 6m-8m, prema detaljima datim u tekstualnom i grafičkom dijelu projektne dokumentacije.\n• Masa svjetiljke ne veća od: 3,5 kg\n• Boja kućišta: crna nijansa završne boje","kom",2,null,{"$f":"D48*E48","v":0}]
[null,"Električne i optičke Karakteristike:\n• Ukupna snaga svjetiljke: max 30W ±10%, \n• Iskoristivi (izlazni) svjetlosni fluks svjetiljke: min 1.850 lm ± 5% (na Ta=25°C),\n• Efikasnost svjetiljke  ≥ 50 lm/W.\n• Temperatura boje svjetlosti: 3000K (WW-toplo bijela).\n• Nazivni napon i frekvencija: 100-270 VAC, 50 Hz;\n• Faktor snage pri 100% tereta: ≥ 0.90 ,\n• Klasa zaštite prema IEC: I;\n• Svjetlosni fluks izvora svjetla pri 100% tereta nakon 90.000 sati (T=25C): min.70% od inicijalnog (L70)\n• Uzvrat boje CRI ≥ 80;\n• Mehanička otpornost svjetiljke na udar min. IK07;\n• Stepen zaptivenosti svjetiljke (optičkog dijela i dijela predspojnog uređaja) min. IP66, \n• Radna temperatura svjetiljke: u rasponu -35 ͦC do +35 ͦC.\n• Ugao svjetla: 6° - uski snop\n\nProizvođač, tip i model: \n(obavezno upisati): ____________________________________________________________________\n____________________________________________________________________\n"]
["2.4","Isporuka, ugradnja i puštanje u rad LED svjetiljke TIP-SV11,\nOpis:\n• Svjetiljka za osvjetljenje arhitektonskih detalja na fasadama  rezidencijalnih objekata i objekata kulturnog nasljeđa (spotlight)\n• Svjetiljke se montiraju konzolno na fasadu, na visini od cca 6m-10m, prema detaljima datim u tekstualnom i grafičkom dijelu projektne dokumentacije.\n• Boja kućišta: tamno crna nijansa završne boje","kom",6,null,{"$f":"D50*E50","v":0}]
[null,"Električne i optičke Karakteristike:\n• Ukupna snaga svjetiljke: max 12W ±10%, \n• Iskoristivi (izlazni) svjetlosni fluks svjetiljke: min 680 lm ± 5% (na Ta=25°C),\n• Efikasnost svjetiljke  ≥ 60 lm/W.\n• Temperatura boje svjetlosti: 3000K (WW-toplo bijela).\n• Nazivni napon i frekvencija: 100-270 VAC, 50 Hz;\n• Faktor snage pri 100% tereta: ≥ 0.90 ,\n• Klasa zaštite prema IEC: I;\n• Trajnost LED izvora:  ≥ 50.000 sati, \n• Svjetlosni fluks izvora svjetla pri 100% tereta nakon 50.000 sati (T=25C): min.90% od inicijalnog (L90)\n• Uzvrat boje CRI ≥ 80;\n• Mehanička otpornost svjetiljke na udar min. IK07;\n• Stepen zaptivenosti svjetiljke (optičkog dijela i dijela predspojnog uređaja) min. IP66, \n• Radna temperatura svjetiljke: u rasponu -35 ͦC do +35 ͦC.\n• Ugao svjetla: 6° - 10° uski snop \n\nProizvođač, tip i model: \n(obavezno upisati): ____________________________________________________________________\n____________________________________________________________________\n"]
["III","INSTALACIJA ZA RASVJETU"]
["3.1","Izvođenje pripremnih radova za aktivnosti ugradnje nove vanjske rasvjete sa pratećim kablovskim instalacijama. Pripremni radovi podrazumjevaju slijedeće aktivnosti:\n - Detaljan uvid sa identifikacijom svjetiljki i stubova koji se demontiraju\n - Identifikacija napojnih ormara vanjske rasvjete sa pripadajućim strujnim krugovima za svijetiljke koje se demontiraju\n - Obezbjeđenje potrebnih dozvola za rad (MUP, Kantonalno ministarstvo saobraćaja,...)\n - Izrada detaljnog plana aktivnosti na demontaži postojeće i ugradnji nove rasvjete \n - Sve ostale pripremne aktivnosti koje je potrebno izvesti prije početka radova na demontaži postojeće i ugradnji nove vanjske rasvjete\nSve kompletno","paušal",1,null,{"$f":"D53*E53","v":0}]
["3.2","Isporuka i ugradnja kablova za napajanje svijetiljki.\n Kablovi se polažu u krute PVC zaštitne cijevi. U cijenu je uključen kompletan materijal za montažu i spajanje kablova. Kablovi se ugrađuju na visini od 8-16 metara uz upotrebu odgovarajuće autodizalice. Svi radovi na ugradnji kablova i svijetiljki se izvode noću, u periodu od 00:00 do 05:00. Prije davanja ponude potrebano je napraviti detaljan uvid u trase polaganja kablova (ulice Titova i Ferhadija). Kablovi su slijedećih tipova i presjeka:","m",4400,null,{"$f":"D54*E54","v":0}]
[null," -PP00-Y 3x2,5 mm2",null,null,null,0]
["3.3","Isporuka i montaža tvrdih PNT cijevi 20 mm za polaganje kablova po fasadi objekata (na potezima razvodna kutija - početak zatezne sajle). U cijenu su uključene obujmice, spojnice. PNT cijevi se ugrađuju na visini od 8-16 metara uz upotrebu odgovarajuće autodizalice. Svi radovi na ugradnji PNT cijevi  se izvode noću, u periodu od 00:00 do 05:00. Prije davanja ponude potrebano je napraviti detaljan uvid u trase polaganja PNT cijevi (ulice Titova i Ferhadija). \nSve kompletno.","m",2120,null,0]
["3.4","Isporuka i montaža prolaznih razvodnih kutija koje se postavljaju na fasade objekata na pozicijama na kojima su se nalazila već postojeća rasvjetna tijela. N/Ž instalacija, IP66, sa minimalno 4 uvodnice za kablove, zajedno sa svim potrebnim elementima (stezaljke za nastak kablova). \nSve kompletno.","kom",175,null,0]
["3.5","Isporuka i montaža tvrdih spojnih elemenata, za vezu kabal - sajla, zajedno sa svim potrebnim elementima za spajanje i postavljanje. Potrebno je da isti budu otporni na vanjske uticaje (vrijeme, temperature itd.). \nSve kompletno.","kom",1958,null,0]
["3.6","Radovi na demontaži i izmještanju postojećih elektro instalacija i rasvjetnih tijela koja su u okviru navedenog projekta. U obračun uzeti u obzir svu potrebnu opremu, materijal i vozila (dizalice za rad na visini do 16 metara, vozila za odvoz materijala i sl.).  U stavku uključeno i odlaganje opreme na mjestu po zahtjevu investitora (na teritoriju Kantona Sarajevo).\nObračun po demontiranoj svijetiljci. Također, u obračun uzeti u obzir noćni rad.  Svi radovi na demontaži postojećih svijetiljki i kablova  se izvode noću, u periodu od 00:00 do 05:00.\nPrije davanja ponude potrebano je napraviti detaljan uvid u trase i mjesta demontaže svijetiljki (ulice Titova i Ferhadija).","kom",58,null,0]
["3.7","Demontaža postojećih stupova visine do 8 metara. U cijenu uključiti i demontažu svijetiljki, te odvoz stupova i svjetiljki na lokaciju koju odredi Investitor (Kanton Sarajevo). Takođe, cijena obuhvata i demontažu betonskog temelja na koji je ugrađen stup uz nedestruktivno izvlačenje napojnih kablova i zaštite istih prije uvlačenja u novi temelj koji se radi na istom mjestu. Pored svega u cijenu uključiti, obzirom da je određenoj količini stubova onemogućen pristup vanjskim uslužnim dijelovima ugostiteljskih objekata, razgovor sa istoimenim vlasnicima, traženje i dobivanje potrebnih dozvola i eventulna izmještanja pojedinih elemenata ili kompletnih mobilnih dijelova ugostiteljskih objekata radi oslobađanja pristupa postojećim stubovima. Sve kompletno.","kom",6,null,0]
["3.8","Ostali sitni materijal.","paušal",1,null,0]
["3.9","lzvrsiti potrebna ispitivanja izvedenih električnih instalacija nakon završetka radova (zastite od dodira dijelova pod naponom, uzemljenje)  i dostaviti ispitne protokole.  ","paušal",1,null,0]
["3.10","lzvrsiti mjerenje osvijetljenosti trasa na kojima je provedena rekonstrukcija nakon zavrsetka radova i dostaviti protokole o izvršenim mjerenjima.","paušal",1,null,0]
[null,"UKUPNO Svjetiljki:",null,{"$f":"D46+D44+D38+D36+D34+D29+D27+D25+D31+D48+D50","v":179}]
[null,"UKUPNO   KM:",null,null,null,{"$f":"SUM(F16:F63)","v":0}]
[null,"POPUST (%)",null,0,null,{"$f":"F65*D66","v":0}]
[null,"PDV 17%",null,null,null,{"$f":"(F65-F66)*0.17","v":0}]
[null,"SVEUKUPNO   KM:",null,null,null,{"$f":"(F65-F66)+F67","v":0}]

{"sheet":"2. GRAĐEVINSKI","index":1,"n_rows":85,"n_cols":6,"rows_kept":85,"cut":false,"hidden":false,"merged":[[65,0,76,0],[10,1,10,5],[30,1,30,4],[61,1,61,4],[14,0,29,0],[31,0,60,0],[81,1,81,2],[82,1,82,2],[83,1,83,2],[84,1,84,2],[11,1,11,5],[63,1,63,4],[12,1,12,5],[1,1,3,1],[1,2,1,5],[2,2,2,5],[3,2,3,5],[5,0,5,5]]}
[null,"SPECIFIKACIJA MATERIJALA"]
[null,null,"Predmet:"]
[]
[null,null,"Lokacija: Grad Sarajevo"]
[]
["Grad Sarajevo - Rekonstrukcija dijela sistema javne rasvjete - Ulice Maršala Tita i Ferhadija"]
[]
[null,null,"jed.\nmjere","kol.","jed.\ncijena","KM"]
[null,"Opis radova:"]
[]
["B","GRAĐEVINSKI DIO"]
[null,"NAPOMENA:\n\nPotencijalni izvođač će pregledati projektnu dokumentaciju, te obići sve pozicije primarnih zatega 1 – 44, te sekundarni ovjes. Sa koordinatorom projekta je usaglašeno da se u jediničnoj cijeni primarnog i sekundarnog ovjesa predvidi sav potreban okov, spojni pribor, anker vijci – sidrenje za različite zidne strukture, sajle – inox užad, sve u kvaliteti  klasa AISI 316. Zahtjeva se:\n\n- Kvaliteta užeta – sajle - čelika, „INOX“ uže, strukture 7x19 mm, klasa AISI 316\n- Prekidna čvrstoća užeta iznosi 1570 N/mm2\n- Modul elastičnosti E=145 do 170 Gpa\n\nSvi detalji se moraju prije montaže usaglasiti sa projektantskim timom, nakon čega će se izdati pismeno odobranje za sve tehničke detalje. \n\nU kalkulaciji predvidjeti anker ploče 200/300/14 mm, 8 anker vijka M 12 – tipovi za ratličite materijale u zidnoj strukturi. Na anker ploči pripremiti „kačenje“ za sajlu. Cijela pozicija je „toplo pocinčana“.   \n \nU jedinačnim cijenama je potrebno predvidjeti pomične skele, dizalice, priručna sredstva za rad, zašitnu opremu, čišćenje i odvoz, vraćanje oštećenih dijelova fasada u prvobitno stanje, itd. Sve se mora usaglasiti sa n. o. investitira.\n"]
[null,"U cilju potvrđivanja zadovoljavanja zahtijevanih karakteristika kvaliteta, potrebno je priložiti:\n• Za stubove: Certifikat o usklađenosti sa standardom EN 40\n• Za čeličnu užad : Cerifikat o usklađenosti sa standardom EN 12385-4 i klasom kvaliteta AISI 316\n• Za betonske temelje MB 30: Certifikat prema BAS EN 206+A1:2018\nAtesti, certifikati i izvještaji mogu biti dostavljeni na jednom od službenih jezika BiH ili na engleskom jeziku."]
[]
[1,"Izrada primarnog ovjesa na visini cca 10 m, Ulica Titova, od sajli Ø 8 mm, po pozicijama: (mjere su u „m“). Sajle su slijedećih dužina:"]
[null," 1.   Dužina 29,20","m",29.2,null,{"$f":"D16*E16","v":0}]
[null," 2.   Dužina 16,50","m",16.5,null,{"$f":"D17*E17","v":0}]
[null," 3.   Dužina 17,00","m",17,null,0]
[null," 4.   Dužina 18,00","m",18,null,0]
[null," 5.   Dužina 19,20","m",19.2,null,0]
[null," 6.   Dužina 21,75","m",21.75,null,0]
[null," 7.   Dužina 18,60","m",18.600000000000001,null,0]
[null," 8.   Dužina 19,50","m",19.5,null,0]
[null," 9.   Dužina 25,90","m",25.9,null,0]
[null," 10. Dužina 26,10","m",26.1,null,0]
[null," 11. Dužina 20,90","m",20.9,null,0]
[null," 12. Dužina 21,30","m",21.3,null,0]
[null," 13. Dužina 21,70","m",21.7,null,0]
[null," 14. Dužina 22,10","m",22.1,null,0]
[null," 15. Dužina 25,10","m",25.1,null,0]
[null,"Ukupno 1:",null,null,null,{"$f":"SUM(F16:F30)","v":0}]
[2,"Izrada primarnog ovjesa na visini cca 6 m, Ulica Ferhadija, od sajli Ø 8 mm, po pozicijama: (mjere su u „m“). Sajle su slijedećih dužina:"]
[null," 16. Dužina 22,10","m",22.1,null,{"$f":"D33*E33","v":0}]
[null," 17. Dužina 25,10","m",25.1,null,{"$f":"D34*E34","v":0}]
[null," 18. Dužina 10,60","m",10.6,null,0]
[null," 19. Dužina 11,90","m",11.9,null,0]
[null," 20. Dužina 11,50","m",11.5,null,0]
[null," 21. Dužina 11,90","m",11.9,null,0]
[null," 22. Dužina 09,45","m",9.4499999999999993,null,0]
[null," 23. Dužina 08,90","m",8.9,null,0]
[null," 24. Dužina 09,50","m",9.5,null,0]
[null," 25. Dužina 08,90","m",8.9,null,0]
[null," 26. Dužina 10,90","m",10.9,null,0]
[null," 27. Dužina 10,50","m",10.5,null,0]
[null," 28. Dužina 11,50","m",11.5,null,0]
[null," 29. Dužina 10,65","m",10.65,null,0]
[null," 30. Dužina 11,00","m",11,null,0]
[null," 31. Dužina 12,00","m",12,null,0]
[null," 32. Dužina 10,20","m",10.199999999999999,null,0]
[null," 33. Dužina 09,00","m",9,null,0]
[null," 34. Dužina 08,70","m",8.6999999999999993,null,0]
[null," 35. Dužina 08,70","m",8.6999999999999993,null,0]
[null," 36. Dužina 08,70","m",8.6999999999999993,null,0]
[null," 37. Dužina 08,70","m",8.6999999999999993,null,0]
[null," 38. Dužina 08,70","m",8.6999999999999993,null,0]
[null," 39. Dužina 13,70","m",13.7,null,0]
[null," 40. Dužina 13,70",null,13.7,null,0]
[null," 41. Dužina 09,10","m",9.1,null,0]
[null," 42. Dužina 08,70","m",8.6999999999999993,null,0]
[null," 43. Dužina 09,30","m",9.3000000000000007,null,0]
[null," 44. Dužina 08,90","m",8.9,null,0]
[null,"Ukupno 2:",null,null,null,{"$f":"SUM(F33:F55)","v":0}]
[]
[null,"UKUPNO 1-2 (KM):",null,null,null,{"$f":"F62+F31","v":0}]
[]
[3,"Izrada Temelja samaca – temeljnih stopa, od betona MB 30, armatura Bst 500 S.\nČelični  stubovi  tip kao „Philips – conica 30080\" ili jednakovrijedan. Za stubove će se fiksirati primarne sajle ovjesa. Stubovi su označeni sa S1 i S2\nDimenzije temeljnih stopa su: stopa 220/200/45 cm, „vrat“ 60/60/45 cm.\nU  temelj  ugraditi PVC  cijev Ф  50-60mm  za  prolaz  kabla  i  FeZn  trake.  Ugradnja temeljnih-ankernih vijaka uz upotrebu šablona.\nU cijeni su sve pozicije radova, prosjecanje asfaltne (ili druge povovršine), iskop, utovar i odvoz na deponiju, podložni beton, beton ta stope, armatura i ankeri – prema tipu stuba, zatrpavanje i vraćanje gornje plohe u prvobitno stanje."]
[null,"- Prosjecanje asfaltne površine","m²",4.4000000000000004,null,{"$f":"D67*E67","v":0}]
[null,"- Iskop III kategorija","m³",4.2,null,{"$f":"D68*E68","v":0}]
[null,"- Podložni beton debljine 5 cm, MB 20","m²",4.4000000000000004,null,0]
[null,"- Beton MB 30, u iskopu bez oplate","m³",2,null,0]
[null,"- Beton MB 30, u vanjskoj oplati","m³",0.2,null,0]
[null,"- Armatura, Bst 500 S","kg",200,null,0]
[null,"- Ankeri, od armature Ø 25 mm, Bst 500 S","kg",20,null,0]
[null,"- Zatrpavanje i vraćanje u prvobitno stanje","pšl",1,null,0]
[]
[null,"Ukupno jedan (1) temelj (KM):","komplet",1,null,{"$f":"SUM(F67:F75)","v":0}]
[null,"UKUPNO SEDAM (7) TEMELJA (KM):","kom",7,{"$f":"F76","v":0},{"$f":"D77*E77","v":0}]
[]
[4,"Kontrolno ispitivanje na „čupanje“ anker vijaka, metod „in situ“ u različitim materijalima, kamen, beton i dvije različite vrste opeke, puna i šuplja. Težište ispitivanja je na opeci. Ispitivanje može raditi ovlaštena institucija. Sa projektantom i n. O. investitora će se usaglasiti pozicije ispitivanja. \n","kom",22,null,{"$f":"D79*E79","v":0}]
[]
[]
[null,"UKUPNO   KM:",null,null,null,{"$f":"F64+F77+F79","v":0}]
[null,"POPUST (%)",null,0,null,{"$f":"F82*D83","v":0}]
[null,"PDV 17%",null,null,null,{"$f":"(F82-F83)*0.17","v":0}]
[null,"SVEUKUPNO   KM:",null,null,null,{"$f":"(F82-F83)+F84","v":0}]

{"sheet":"Zbirna rekapitulacija","index":2,"n_rows":24,"n_cols":5,"rows_kept":24,"cut":false,"hidden":false,"merged":[[23,0,23,6],[24,0,24,6],[17,0,17,1],[17,2,17,3],[17,4,17,6],[19,0,19,6],[21,0,21,6],[22,0,22,6],[14,0,14,6],[15,0,15,1],[15,2,15,3],[15,4,15,6],[16,0,16,1],[16,2,16,3],[16,4,16,6],[12,0,12,1],[12,2,12,3],[12,4,12,6],[13,0,13,1],[13,2,13,3],[13,4,13,6],[11,0,11,6],[0,0,6,1],[0,2,0,6],[1,2,6,2],[1,3,2,6],[3,3,4,6],[5,3,6,6],[7,0,7,6],[8,0,8,6],[9,0,9,6],[10,0,10,3],[10,4,10,6]]}
[null,null,"ZBIRNA REKAPITULACIJA RADOVA"]
[null,null,null,"GRADILIŠTE:                                                                     \"FERHADIJA-TITOVA\" SARAJEVO"]
{"$rows_empty":7}
["REKAPITULACIJA RADOVA"]
[{"$nulls":4},"UKUPNO"]
[]
["I",null,"Elektro radovi",null,{"$f":"'1.  LED JR-ELEKTRO'!F65","v":0}]
["II",null,"Prateći-građevinski radovi",null,{"$f":"'2. GRAĐEVINSKI'!F82","v":0}]
[]
[null,null,"UKUPNO (bez PDV-a) KM:",null,{"$f":"SUM(E13:G14)","v":0}]
[null,null,"PDV 17% KM:",null,{"$f":"0.17*E16","v":0}]
[null,null,"SVE UKUPNO (sa PDV-om) KM:",null,{"$f":"SUM(E16:G17)","v":0}]
[]
["VAŽNO : U vezi sa predmjerom zahtijevanim materijalima, opremom i uređajima:"]
[]
["• Brandovi/Proizvođači/Modeli/Tipovi u predmjeru su dati samo kao preporuka."]
["• Ponuđači mogu ponuditi materijale, uređaje i opremu ekvivalentnih karakteristika/performansi/"]
["specifikacija. (ili bolje)."]